bitfinex/quotes_ETHUSD_20251031
["timestamp","ask_amount","ask_price","bid_price","bid_amount"]
[1761923995858,0.001,3886.7,3886.6,2.57294293]
[1761923996062,0.001,3886.7,3886.6,3.09011628]
[1761923996558,0.001,3886.7,3886.6,3.1158457]
[1761923996973,0.001,3886.7,3886.6,3.5799457]
[1761923997378,0.001,3886.7,3886.6,3.55421628]
[1761923997755,0.001,3886.7,3886.6,3.09011628]
[1761923997960,0.4805,3886.7,3886.6,2.57294293]
[1761923998167,0.9642,3886.7,3885.3,0.002]
[1761923998366,0.2527,3886.5,3885.9,2.57339035]
[1761923998560,0.2527,3886.5,3886.3,2.57310907]
[1761923998764,0.4837,3886.4,3886.1,2.57321667]
[1761923998966,0.4837,3886.4,3885.3,0.002]
[1761923999166,0.4837,3886.4,3886.0,2.57329555]
[1761923999366,0.4837,3886.4,3885.3,0.002]
[1761923999768,0.4837,3886.4,3885.4,0.02573737]
[1761923999980,0.4837,3886.4,3886.3,2.57314154]
[1761924000184,0.001,3886.7,3886.2,0.02573207]
[1761924000384,0.4847,3886.7,3886.3,2.57313651]
[1761924000696,0.001,3886.7,3886.6,2.57294293]
[1761924001071,0.001,3886.7,3885.6,0.4504]
[1761924001072,0.9642,3886.7,3885.2,0.4504]
[1761924001273,0.2527,3886.5,3885.0,0.4504]
[1761924001474,0.2527,3886.5,3886.4,2.57307533]
[1761924001897,0.7364,3886.5,3886.3,2.57312188]
[1761924002097,0.4837,3886.5,3885.9,2.57340641]
[1761924002298,0.4837,3886.5,3886.4,2.57307533]
[1761924002502,0.001,3886.7,3886.6,2.57294293]
[1761924002682,0.0002,3886.7,3886.6,2.59867235]
[1761924002879,0.0002,3886.7,3886.6,3.64117235]
[1761924003078,0.0002,3886.7,3886.6,3.61544293]
[1761924003282,0.0002,3886.7,3886.6,3.64117235]
[1761924003590,0.0002,3886.7,3886.6,4.28833009]
[1761924004126,0.0002,3886.7,3886.6,4.31405951]
[1761924005915,0.0002,3886.7,3886.6,4.28833009]
[1761924007304,0.0002,3886.7,3886.6,4.31405951]
[1761924007523,0.0002,3886.7,3886.6,4.28833009]
[1761924007885,0.0002,3886.7,3886.6,3.83793009]
[1761924008302,0.0002,3886.7,3886.6,4.31405951]
[1761924009524,0.0002,3886.7,3886.6,4.28833009]
[1761924009725,0.0002,3886.7,3886.6,3.83793009]
[1761924010030,0.0002,3886.7,3886.6,2.57294293]
[1761924010031,0.4797,3886.7,3886.6,2.57294293]
[1761924010175,0.9634,3886.7,3886.6,2.57294293]
[1761924010376,0.4797,3886.7,3886.6,2.57294293]
[1761924010605,0.9634,3886.7,3886.4,0.02573075]
[1761924010820,0.2527,3886.5,3886.4,2.57302601]
[1761924011023,0.0002,3886.7,3886.6,2.57294293]
[1761924011224,0.0002,3886.7,3886.6,2.59867235]
[1761924011528,0.0002,3886.7,3886.6,2.57294293]
[1761924011917,0.0002,3886.7,3886.6,3.03704293]
[1761924012115,0.0002,3886.7,3886.6,2.57294293]
[1761924014033,0.0002,3886.7,3886.6,4.02776924]
[1761924014327,0.0002,3886.7,3886.6,3.55163982]
[1761924014490,0.0002,3886.7,3886.6,3.08753982]
[1761924014692,0.9634,3886.7,3885.1,0.1525]
[1761924014991,0.2527,3886.5,3886.2,2.57320334]
[1761924015340,0.4772,3886.3,3886.2,2.57320334]
[1761924015520,0.4772,3886.3,3886.2,2.57320776]
[1761924015726,0.9295,3886.3,3886.2,2.57320776]
[1761924016020,0.9295,3886.3,3885.1,0.1525]
[1761924016233,0.286,3886.1,3886.0,2.57334019]
[1761924016401,0.286,3886.1,3885.1,2.72638386]
[1761924016602,0.286,3886.1,3885.3,0.27483839]
[1761924016603,0.4753,3885.9,3885.3,0.27483839]
[1761924016803,0.887704,3885.4,3885.3,0.002]
[1761924017008,1.340004,3885.4,3885.3,0.002]
[1761924017892,5.31342158,3885.4,3885.3,0.002]
[1761924018112,3.528391,3885.4,3885.3,0.002]
[1761924018340,2.739684,3885.4,3885.3,0.002]
[1761924018493,5.31342158,3885.4,3885.3,0.002]
[1761924018701,2.739684,3885.4,3885.3,0.002]
[1761924019242,5.31342158,3885.4,3885.3,0.002]
[1761924019608,5.31342158,3885.4,3884.9,0.002]
[1761924019609,2.57420135,3884.7,3884.6,0.002]
[1761924019796,4.86818535,3884.7,3884.6,0.002]
[1761924020131,5.32048535,3884.7,3884.6,0.002]
[1761924021356,2.746284,3884.7,3884.6,0.002]
[1761924022052,1.346604,3884.7,3884.6,0.002]
[1761924022255,0.9411,3884.7,3884.6,0.002]
[1761924022564,0.4888,3884.7,3884.6,2.57626762]
[1761924023026,0.4888,3884.7,3884.6,3.09153043]
[1761924023225,0.1725,3884.8,3884.7,2.57420135]
[1761924024126,1.1222,3884.8,3884.7,2.57420135]
[1761924024453,1.1222,3884.8,3884.6,0.002]
[1761924024651,0.7415,3884.7,3884.6,0.002]
[1761924024959,1.147004,3884.7,3884.6,0.002]
[1761924025266,1.5363569,3884.7,3884.6,0.002]
[1761924025560,4.11055825,3884.7,3884.6,0.002]
[1761924026122,1.5363569,3884.7,3884.6,0.002]
[1761924026334,1.147004,3884.7,3884.6,0.002]
[1761924026779,0.2801,3884.7,3884.6,0.002]
[1761924026921,0.4614,3885.1,3884.6,0.002]
[1761924027351,0.4614,3885.1,3885.0,2.57400257]
[1761924027845,0.4606,3885.1,3885.0,2.57400257]
[1761924028035,0.9489,3885.1,3885.0,2.57400257]
[1761924028238,0.1802,3886.0,3885.0,0.51481328]
[1761924028567,0.4883,3885.1,3884.6,0.002]
[1761924028773,0.4883,3885.0,3884.9,2.57406883]
[1761924030369,0.4883,3885.0,3884.8,2.57408355]
[1761924030571,0.1943,3885.4,3884.9,2.57406883]
[1761924030877,0.1943,3885.4,3884.6,0.002]
[1761924031169,0.6557,3885.4,3884.9,2.57404022]
[1761924031375,0.6557,3885.4,3884.9,2.5740253]
[1761924031573,0.4614,3885.3,3885.0,2.57398525]
[1761924031774,0.4883,3885.1,3885.0,2.57398525]
[1761924032070,0.4883,3885.1,3884.7,2.57414174]
[1761924032276,0.4595,3885.0,3884.8,2.57413509]
[1761924032446,0.4595,3885.0,3884.7,2.57419904]
[1761924032649,0.4595,3885.0,3884.6,2.57626197]
[1761924032851,0.4883,3884.8,3884.7,2.57420135]
[1761924034037,0.4883,3884.8,3884.6,0.002]
[1761924034240,0.2729,3884.7,3884.6,0.002]
[1761924034493,0.678404,3884.7,3884.6,0.002]
[1761924034794,0.4614,3885.2,3884.6,0.002]
[1761924035085,0.405504,3885.1,3884.7,2.57415632]
[1761924035244,0.405504,3885.1,3884.8,2.57412242]
[1761924035439,0.4614,3885.0,3884.6,0.02774267]
[1761924035794,0.4883,3884.7,3884.6,0.002]
[1761924036157,1.355204,3884.7,3884.6,0.002]
[1761924036488,1.74813318,3884.7,3884.6,0.002]
[1761924036974,5.72201453,3884.7,3884.6,0.002]
[1761924037704,5.82522821,3884.7,3884.6,0.002]
[1761924039072,3.25102686,3884.7,3884.6,0.002]
[1761924039268,3.14781318,3884.7,3884.6,0.002]
[1761924039487,5.72201453,3884.7,3884.6,0.002]
[1761924040781,2.57446644,3884.3,3884.2,0.002]
[1761924040978,5.5633539,3884.3,3884.2,0.002]
[1761924041306,2.98023558,3883.9,3883.8,0.002]
[1761924041505,8.63361558,3883.9,3883.8,0.002]
[1761924041809,8.07867258,3883.9,3883.8,0.002]
[1761924042003,8.07867258,3883.9,3882.1,0.005]
[1761924042004,0.405504,3883.0,3882.1,0.005]
[1761924042192,0.405504,3883.1,3882.3,0.1396]
[1761924042507,0.4614,3883.7,3882.1,0.03075925]
[1761924042669,1.805184,3882.8,3882.1,0.005]
[1761924042870,2.57552733,3882.7,3882.1,0.005]
[1761924043076,0.405504,3882.6,3882.1,0.005]
[1761924043380,0.866904,3882.6,3882.1,0.005]
[1761924043615,0.866904,3882.6,3882.1,2.5809099]
[1761924043769,0.866904,3882.6,3882.2,2.57585904]
[1761924043969,0.866904,3882.6,3882.1,0.005]
[1761924044197,0.405504,3882.4,3882.1,0.005]
[1761924044612,0.866904,3882.4,3882.2,2.57581246]
[1761924044951,0.405504,3882.4,3882.1,0.005]
[1761924045135,0.405504,3882.3,3882.1,0.005]
[1761924045523,0.881204,3882.2,3882.1,0.005]
[1761924046120,1.4837944,3882.2,3882.1,0.007]
[1761924046637,1.348904,3882.2,3882.1,0.007]
[1761924046830,1.348904,3882.2,3882.1,2.5829254]
[1761924047030,1.348904,3882.2,3882.1,0.007]
[1761924049045,5.32444304,3882.2,3882.1,0.007]
[1761924051232,2.748584,3882.2,3882.1,0.007]
[1761924051484,5.89727823,3882.2,3882.1,0.007]
[1761924052670,8.16735023,3882.2,3882.1,0.007]
[1761924052968,8.16655023,3882.2,3882.1,0.007]
[1761924053860,9.71655023,3882.2,3882.1,0.007]
[1761924054061,12.26447822,3882.2,3882.1,0.007]
[1761924054961,15.46901922,3882.2,3882.1,0.007]
[1761924055362,43.81447822,3882.2,3882.1,1e-08]
[1761924055542,26.17494822,3882.2,3882.1,1e-08]
[1761924055949,16.06283322,3882.2,3882.1,1e-08]
[1761924057380,5.89647823,3882.2,3882.1,1e-08]
[1761924058271,4.49679823,3882.2,3882.1,1e-08]
[1761924058581,5.89647823,3882.2,3882.1,1e-08]
[1761924058982,10.14831123,3882.2,3882.1,1e-08]
[1761924059783,7.98157823,3882.2,3882.1,1e-08]
[1761924060402,10.49904146,3882.2,3882.1,1e-08]
[1761924060548,28.85859845,3882.2,3882.1,1e-08]
[1761924060753,28.63931045,3882.2,3882.1,1e-08]
[1761924061187,27.44526745,3882.2,3882.1,1e-08]
[1761924061684,45.14519045,3882.2,3882.1,1e-08]
[1761924061996,19.53987411,3881.9,3881.8,0.002]
[1761924062151,29.79870063,3881.9,3881.8,0.002]
[1761924062346,17.90941021,3881.6,3881.5,0.002]
[1761924062575,26.17243744,3881.6,3881.5,0.002]
[1761924062778,38.04958095,3881.6,3881.5,0.002]
[1761924062990,44.41758093,3881.6,3881.5,0.002]
[1761924063190,20.42531472,3881.2,3881.1,0.007]
[1761924063408,22.30069472,3881.2,3881.1,0.007]
[1761924063710,25.59631672,3881.2,3881.1,0.007]
[1761924063877,18.68269772,3881.2,3881.1,0.007]
[1761924064078,9.65520672,3881.2,3881.1,0.007]
[1761924064319,4.70238991,3881.2,3881.1,0.007]
[1761924064613,6.10206991,3881.2,3881.1,0.007]
[1761924065003,3.12004319,3881.2,3881.1,0.007]
[1761924065208,5.32510672,3881.2,3881.1,0.007]
[1761924065518,18.08364372,3881.2,3881.1,0.007]
[1761924065682,19.63364372,3881.2,3881.1,0.007]
[1761924066019,19.96292693,3881.2,3881.1,0.007]
[1761924066311,10.50968993,3881.2,3881.1,0.007]
[1761924066517,11.50016268,3881.2,3881.1,0.007]
[1761924067216,3.29829396,3881.2,3881.1,0.007]
[1761924067414,3.92542672,3881.2,3881.1,0.007]
[1761924067817,2.57652272,3881.2,3881.1,0.007]
[1761924068020,2.34308,3881.2,3881.1,0.007]
[1761924068325,1.39968,3881.2,3881.1,0.007]
[1761924068827,1.805184,3881.2,3881.1,0.007]
[1761924069110,1.39968,3881.2,3881.1,0.007]
[1761924069281,1.805184,3881.2,3881.1,0.007]
[1761924069479,0.405504,3881.2,3881.1,0.007]
[1761924069909,3.45772672,3881.2,3881.1,0.007]
[1761924070219,2.67342667,3881.2,3881.1,0.007]
[1761924070783,1.805184,3881.2,3881.1,0.6177]
[1761924071394,1.805184,3881.2,3881.1,0.007]
[1761924071921,2.280884,3881.2,3881.1,0.007]
[1761924072106,4.85740672,3881.2,3881.1,0.007]
[1761924072306,2.280884,3881.2,3881.1,0.007]
[1761924072595,1.805184,3881.2,3881.1,0.007]
[1761924072797,1.9857024,3881.2,3881.1,0.007]
[1761924073017,2.4614024,3881.2,3881.1,0.007]
[1761924073542,0.405504,3881.2,3881.1,0.007]
[1761924074104,3.45772672,3881.2,3881.1,0.007]
[1761924075052,5.93177311,3881.1,3881.0,0.002]
[1761924075224,2.98269074,3880.2,3880.1,0.005]
[1761924075429,18.68641797,3880.2,3880.1,0.005]
[1761924075734,15.42982497,3880.2,3880.1,0.005]
[1761924075941,22.27323497,3880.2,3880.1,0.005]
[1761924076739,18.47564097,3880.2,3880.1,0.005]
[1761924076901,27.90746044,3880.2,3880.1,0.005]
[1761924077106,27.40743644,3880.2,3880.1,0.005]
[1761924077308,25.90283684,3880.2,3880.1,0.005]
[1761924077505,2.57765175,3879.5,3878.6,0.002]
[1761924077733,25.3999811,3879.2,3878.6,0.002]
[1761924077932,14.3548351,3879.2,3878.6,0.002]
[1761924078134,2.106984,3879.2,3878.6,0.002]
[1761924078534,1.172804,3879.2,3878.6,0.002]
[1761924078731,0.404704,3879.2,3878.6,0.002]
[1761924079243,0.855304,3879.2,3878.6,0.002]
[1761924079444,4.1707035,3879.2,3878.6,0.002]
[1761924079645,19.6358905,3879.2,3878.6,0.002]
[1761924079832,9.5999445,3879.2,3878.6,0.002]
[1761924080206,5.5703835,3879.2,3878.6,0.002]
[1761924080406,7.9739645,3879.2,3878.6,0.002]
[1761924080607,5.1656795,3879.2,3878.6,0.002]
[1761924080837,5.5711835,3879.2,3878.6,0.002]
[1761924081241,2.9933324,3879.2,3878.6,0.002]
[1761924081553,2.0772324,3879.2,3878.6,0.002]
[1761924081753,4.6550835,3879.2,3879.1,0.007]
[1761924081914,1.1281524,3879.2,3879.1,0.007]
[1761924082115,3.4339551,3879.2,3879.1,0.007]
[1761924082650,3.8994551,3879.2,3879.1,0.007]
[1761924082819,1.321604,3879.2,3879.1,0.007]
[1761924083015,0.80875681,3879.8,3879.1,0.007]
[1761924083221,2.20843681,3879.8,3879.1,0.007]
[1761924083429,2.57778203,3879.4,3879.1,0.007]
[1761924083755,21.9540681,3879.2,3879.1,0.007]
[1761924084058,17.0176131,3879.2,3879.1,0.007]
[1761924084226,17.5153131,3879.2,3879.1,0.007]
[1761924084764,2.255784,3879.2,3879.1,0.007]
[1761924084958,3.9775311,3879.2,3879.1,0.007]
[1761924085116,5.49836244,3879.2,3879.1,0.007]
[1761924085317,5.99606244,3879.2,3879.1,0.007]
[1761924085626,2.92051134,3879.2,3879.1,0.007]
[1761924085850,2.46071134,3879.2,3879.1,0.007]
[1761924086065,4.8428351,3879.2,3879.1,0.007]
[1761924086558,2.264984,3879.2,3879.1,0.007]
[1761924086764,1.805184,3879.2,3879.1,0.007]
[1761924087466,1.39968,3879.2,3879.1,1.1364]
[1761924087790,6.40774723,3880.5,3879.1,1.1364]
[1761924087936,6.40774723,3880.5,3879.7,0.4951]
[1761924088126,2.57745244,3879.8,3879.7,0.4951]
[1761924088325,2.9813872,3880.3,3879.2,0.4927]
[1761924088649,2.9813872,3880.3,3879.1,0.1486]
[1761924088650,2.57750139,3879.8,3879.1,0.1486]
[1761924088830,0.405504,3880.1,3879.1,0.1486]
[1761924089028,0.4977,3880.2,3879.1,0.1486]
[1761924089029,2.9831033,3879.6,3879.1,0.1486]
[1761924089328,0.405504,3879.4,3879.1,0.1486]
[1761924089728,0.84378805,3879.4,3879.1,0.007]
[1761924089929,0.405504,3879.2,3879.1,0.007]
[1761924090328,2.9833551,3879.2,3879.1,0.007]
[1761924090549,4.8428351,3879.2,3879.1,0.007]
[1761924091262,1.805184,3879.2,3879.1,0.007]
[1761924091562,4.8428351,3879.2,3879.1,0.007]
[1761924091763,5.63466829,3879.2,3879.1,0.007]
[1761924092065,3.05681719,3879.2,3879.1,0.007]
[1761924092265,3.05681719,3879.2,3879.1,0.5021]
[1761924092266,1.805184,3879.2,3879.1,0.5021]
[1761924092442,1.805184,3879.2,3879.1,0.6437]
[1761924093044,0.405504,3879.2,3879.1,1.1364]
[1761924093565,0.405504,3879.2,3879.1,0.6437]
[1761924093755,0.405504,3879.2,3879.1,1.1364]
[1761924094156,0.405504,3879.2,3879.1,3.71431755]
[1761924094355,0.405504,3879.2,3879.1,1.1364]
[1761924094538,0.405504,3879.2,3879.1,0.6437]
[1761924095355,0.405504,3879.2,3879.1,0.007]
[1761924095836,0.405504,3879.2,3879.1,0.6437]
[1761924097053,4.3830351,3879.2,3879.1,0.007]
[1761924097367,5.07911468,3879.2,3879.1,0.5021]
[1761924097573,1.805184,3879.2,3879.1,0.6437]
[1761924099086,1.806184,3879.2,3879.1,1.1364]
[1761924099255,1.806184,3879.2,3879.1,0.6437]
[1761924101171,4.3840351,3879.2,3879.1,0.6437]
[1761924101390,1.806184,3879.2,3879.1,0.007]
[1761924101692,1.806184,3879.2,3879.1,0.5021]
[1761924101895,1.806184,3879.2,3879.1,0.6437]
[1761924102271,1.806184,3879.2,3879.1,0.5021]
[1761924102804,5.77992644,3879.2,3879.1,0.007]
[1761924103485,20.11704844,3879.2,3879.1,0.007]
[1761924104503,1.83907134,3879.2,3879.1,0.007]
[1761924104798,1.40068,3879.2,3879.1,0.5021]
[1761924105002,0.001,3879.2,3879.1,0.5021]
[1761924105378,0.001,3879.2,3879.1,1.1432]
[1761924105769,0.001,3879.2,3879.1,0.6437]
[1761924106100,0.001,3879.2,3879.1,1.1432]
[1761924107401,0.001,3879.2,3879.1,0.6437]
[1761924107600,2.9843551,3879.2,3879.1,0.5021]
[1761924107770,5.08021186,3879.2,3879.1,0.007]
[1761924108101,2.50236076,3879.2,3879.1,0.6276]
[1761924108301,1.806184,3879.2,3879.1,0.6276]
[1761924108601,1.806184,3879.2,3879.1,0.007]
[1761924108895,1.806184,3879.2,3879.1,0.6276]
[1761924109400,1.806184,3879.2,3879.1,1.1271]
[1761924109606,1.806184,3879.2,3879.1,3.70501755]
[1761924109778,1.806184,3879.2,3879.1,1.1271]
[1761924109984,1.806184,3879.2,3879.1,0.6276]
[1761924110464,1.806184,3879.2,3879.1,1.1271]
[1761924111295,1.806184,3879.2,3879.1,1.12709983]
[1761924111484,0.406504,3879.2,3879.1,3.70501738]
[1761924113189,0.001,3879.2,3879.1,4.35930094]
[1761924114231,0.001,3879.2,3879.1,4.33352177]
[1761924114504,0.001,3879.2,3879.1,4.35930094]
[1761924115225,0.001,3879.2,3879.1,3.20551738]
[1761924115383,0.001,3879.2,3879.1,0.62759983]
[1761924116286,0.001,3879.2,3879.1,0.00699983]
[1761924116826,0.001,3879.2,3879.1,1.12709983]
[1761924117187,0.001,3879.2,3879.1,3.70501738]
[1761924117389,0.001,3879.2,3879.1,3.20551738]
[1761924117587,0.001,3879.2,3879.1,4.07571912]
[1761924117790,0.001,3879.2,3879.1,3.70501738]
[1761924119211,0.001,3879.2,3879.1,3.20551738]
[1761924119415,0.001,3879.2,3879.1,0.48599983]
[1761924119616,2.5788511,3879.2,3879.1,0.00699983]
[1761924119789,5.3386351,3879.2,3879.1,0.00699983]
[1761924120121,5.87249861,3879.2,3879.1,0.00699983]
[1761924120321,14.93245561,3879.2,3879.1,0.00699983]
[1761924120693,5.87249861,3879.2,3879.1,0.00699983]
[1761924120925,3.29464751,3879.2,3879.1,0.00699983]
[1761924121089,5.87249861,3879.2,3879.1,0.00699983]
[1761924121489,2.80934751,3879.2,3879.1,0.00699983]
[1761924121927,5.3386351,3879.2,3879.1,0.00699983]
[1761924122129,9.5064071,3879.2,3879.1,0.00699983]
[1761924122492,7.7877811,3879.2,3879.1,0.00699983]
[1761924122829,11.6784981,3879.2,3879.1,0.00699983]
[1761924123324,11.4202481,3879.2,3879.1,0.00699983]
[1761924123629,23.72863676,3879.2,3879.1,0.00699983]
[1761924123794,24.07579924,3879.2,3879.1,0.00699983]
[1761924124424,6.73843676,3879.2,3879.1,0.00699983]
[1761924124723,8.96643676,3879.2,3879.1,0.00699983]
[1761924125092,6.73843676,3879.2,3879.1,0.00699983]
[1761924125427,2.80048166,3879.2,3879.1,0.00699983]
[1761924125589,0.001,3879.2,3879.1,0.00699983]
[1761924126216,0.9556,3879.2,3879.1,0.00699983]
[1761924126541,11.7474181,3879.2,3879.1,0.00699983]
[1761924126845,4.8533351,3879.2,3879.1,0.00699983]
[1761924127265,5.3386351,3879.2,3879.1,0.00699983]
[1761924127443,12.83355279,3879.2,3879.1,0.00699983]
[1761924127941,6.13027179,3879.2,3879.1,0.00699983]
[1761924128116,5.64497179,3879.2,3879.1,0.00699983]
[1761924128319,3.06712069,3879.2,3879.1,0.00699983]
[1761924128521,2.759984,3879.2,3879.1,0.00699983]
[1761924128821,1.805384,3879.2,3879.1,0.00699983]
[1761924129146,2.274684,3879.2,3879.1,0.00699983]
[1761924129545,4.8525351,3879.2,3879.1,0.00699983]
[1761924129740,5.3378351,3879.2,3879.1,0.00699983]
[1761924129945,6.12939215,3879.2,3879.1,0.00699983]
[1761924130920,3.55154105,3879.2,3879.1,0.00699983]
[1761924131139,2.274684,3879.2,3879.1,0.00699983]
[1761924131339,1.805384,3879.2,3879.1,0.00699983]
[1761924131648,1.39988,3879.2,3879.1,0.00699983]
[1761924131848,3.9777311,3879.2,3879.1,0.00699983]
[1761924132055,4.9323311,3879.2,3879.1,0.00699983]
[1761924132261,12.03683574,3879.2,3879.1,0.00699983]
[1761924133354,11.08894074,3879.2,3879.1,0.00699983]
[1761924133554,8.08894074,3879.2,3879.1,0.00699983]
[1761924133954,8.82584074,3879.2,3879.1,0.00699983]
[1761924134153,5.06098964,3879.2,3879.1,0.00699983]
[1761924134455,7.63884074,3879.2,3879.1,0.00699983]
[1761924136570,0.75120564,3879.2,3879.1,0.00699983]
[1761924136770,0.0002,3879.2,3879.1,0.45699983]
[1761924136970,0.4828,3879.2,3879.1,0.00699983]
[1761924137274,0.0002,3879.2,3879.1,0.00699983]
[1761924137450,0.405704,3879.2,3879.1,0.00699983]
[1761924137850,0.0002,3879.2,3879.1,0.00699983]
[1761924138247,4.8658351,3879.2,3879.1,0.00699983]
[1761924138451,5.99091887,3879.2,3879.1,0.00699983]
[1761924138989,2.93046777,3879.2,3879.1,0.00699983]
[1761924139190,1.39988,3879.2,3879.1,3.64731738]
[1761924139591,1.39988,3879.2,3879.1,0.59859983]
[1761924140274,4.8658351,3879.2,3879.1,0.00699983]
[1761924140761,1.805384,3879.2,3879.1,0.00699983]
[1761924141092,4.3832351,3879.2,3879.1,0.00699983]
[1761924141297,4.97655861,3879.2,3879.1,0.00699983]
[1761924141589,5.45915861,3879.2,3879.1,0.00699983]
[1761924141899,2.88130751,3879.2,3879.1,0.00699983]
[1761924142104,5.45915861,3879.2,3879.1,0.00699983]
[1761924142654,27.40042161,3879.2,3879.1,0.00699983]
[1761924142871,26.43608961,3879.2,3879.1,1e-08]
[1761924143066,26.78325209,3879.2,3879.1,1e-08]
[1761924143695,36.84386609,3879.2,3879.1,1e-08]
[1761924143908,27.62356109,3879.2,3879.1,1e-08]
[1761924144056,30.33656109,3879.2,3879.1,1e-08]
[1761924144263,27.39418055,3879.1,3879.0,0.002]
[1761924144605,30.22684394,3878.8,3878.7,1e-08]
[1761924145109,28.80345142,3878.8,3878.7,1e-08]
[1761924145272,26.44651328,3877.9,3877.1,0.007]
[1761924145469,27.08891328,3877.9,3877.1,0.007]
[1761924145662,27.55581328,3877.9,3877.1,0.007]
[1761924145862,22.50532224,3877.9,3877.1,0.007]
[1761924146060,20.76367924,3877.9,3877.1,0.007]
[1761924146392,15.15959424,3877.9,3877.1,0.007]
[1761924146599,13.15959424,3877.9,3877.1,0.007]
[1761924146805,2.98468485,3877.2,3877.1,0.007]
[1761924147021,13.4441919,3877.0,3876.9,0.002]
[1761924147294,8.4120299,3877.0,3876.9,0.002]
[1761924147493,8.8789299,3877.0,3876.9,0.002]
[1761924148099,15.7453059,3877.0,3876.9,0.002]
[1761924148302,7.80522892,3877.0,3876.9,0.002]
[1761924148468,11.25805792,3877.0,3876.9,0.002]
[1761924149594,19.62278792,3877.0,3876.9,0.002]
[1761924149794,18.24895216,3877.0,3876.9,0.002]
[1761924150100,16.33129316,3877.0,3876.9,0.002]
[1761924150297,7.64815316,3877.0,3876.9,0.002]
[1761924150595,11.07459616,3877.0,3876.9,0.002]
[1761924151484,6.00792716,3877.0,3876.9,0.002]
[1761924151685,6.00792716,3877.0,3876.1,0.005]
[1761924151686,2.98535024,3876.2,3876.1,0.005]
[1761924151996,18.63288826,3876.2,3876.1,0.005]
[1761924152198,17.15456226,3876.2,3876.1,0.005]
[1761924152389,13.09190826,3876.2,3876.1,0.005]
[1761924152586,4.68356526,3876.2,3876.1,0.005]
[1761924152810,2.10371902,3876.2,3876.1,0.4656]
[1761924153124,4.68356526,3876.2,3876.1,0.005]
[1761924153327,1.805184,3876.2,3876.1,0.4656]
[1761924153504,4.38503024,3876.2,3876.1,0.4656]
[1761924153812,1.804384,3876.2,3876.1,0.4656]
[1761924153977,2.57960448,3876.6,3876.1,0.9347]
[1761924154177,0.25796045,3876.6,3876.2,0.4606]
[1761924154408,0.69942926,3877.0,3876.2,0.4606]
[1761924154409,0.40457424,3877.0,3876.5,0.4606]
[1761924154614,0.40457424,3877.0,3876.9,0.4606]
[1761924154809,0.40457424,3877.0,3876.3,2.5797688]
[1761924155201,2.57920094,3877.2,3876.9,0.4606]
[1761924155507,2.57920094,3877.2,3876.4,3.04881135]
[1761924155508,0.65579517,3877.2,3877.0,0.4606]
[1761924155708,0.40451105,3877.6,3877.1,0.6036]
[1761924156016,1.39968,3877.4,3877.3,0.4606]
[1761924156198,1.39968,3877.6,3877.3,0.4606]
[1761924156402,2.57878671,3877.8,3877.3,0.4606]
[1761924156602,2.57892224,3877.6,3877.3,0.4606]
[1761924156780,2.57899742,3877.5,3877.3,0.4606]
[1761924157113,4.38423181,3877.4,3877.3,0.4606]
[1761924157352,1.805184,3877.4,3877.3,0.4606]
[1761924157613,1.805184,3877.4,3877.3,0.9297]
[1761924157813,0.4669,3878.5,3877.3,0.9297]
[1761924158019,5.727073,3878.3,3877.3,0.9297]
[1761924158178,1.805184,3877.9,3877.3,0.9297]
[1761924158374,4.38390788,3877.9,3877.3,0.9297]
[1761924158578,1.805184,3877.6,3877.3,0.9297]
[1761924158779,0.405504,3877.4,3877.3,0.4606]
[1761924159010,0.405504,3877.4,3876.9,0.6121]
[1761924159011,0.70395743,3877.4,3876.9,0.143]
[1761924159187,1.805184,3877.1,3876.9,0.143]
[1761924159394,2.98475474,3877.1,3876.9,0.143]
[1761924159611,2.98475474,3877.1,3877.0,0.4606]
[1761924159793,2.98469112,3877.2,3877.0,0.4606]
[1761924159990,1.805184,3877.1,3877.0,0.4606]
[1761924160188,2.98475137,3877.1,3877.0,0.4606]
[1761924160393,2.9848179,3877.0,3876.9,0.143]
[1761924160591,0.405504,3876.2,3875.6,0.4691]
[1761924160793,2.98535024,3876.2,3875.6,0.4691]
[1761924161140,1.805184,3876.2,3876.1,0.6086]
[1761924161448,1.805184,3876.2,3876.1,1.0777]
[1761924161605,1.805184,3876.2,3876.1,0.6086]
[1761924161800,2.24368175,3876.2,3876.1,0.005]
[1761924162004,2.24368175,3876.2,3876.1,0.6086]
[1761924162304,1.805184,3876.2,3876.1,1.0777]
[1761924162504,4.38503024,3876.2,3876.1,0.6086]
[1761924163001,1.805184,3876.2,3876.1,0.6086]
[1761924163642,2.262284,3876.2,3876.1,0.005]
[1761924163840,5.3263371,3876.2,3876.1,0.005]
[1761924164034,2.28939086,3876.2,3876.1,0.005]
[1761924164212,1.805184,3876.2,3876.1,0.4656]
[1761924164414,1.805184,3876.2,3876.1,0.6079]
[1761924164626,4.38503024,3876.2,3876.1,0.005]
[1761924166429,1.805184,3876.2,3876.1,0.005]
[1761924166628,4.38503024,3876.2,3876.1,0.005]
[1761924166833,5.08150578,3876.2,3876.1,0.005]
[1761924167211,2.50165954,3876.2,3876.1,0.005]
[1761924167409,5.08150578,3876.2,3876.1,0.005]
[1761924168021,6.04070578,3876.2,3876.1,0.005]
[1761924168424,2.58051197,3875.2,3875.1,0.005]
[1761924168761,4.86139597,3875.2,3875.1,0.005]
[1761924168916,5.34489597,3875.2,3875.1,0.005]
[1761924169944,8.11279497,3875.2,3875.1,0.005]
[1761924170358,4.86139597,3875.2,3875.1,0.005]
[1761924170639,6.15580851,3875.2,3875.1,0.005]
[1761924171104,3.57529654,3875.2,3875.1,0.005]
[1761924171306,5.19660851,3875.2,3875.1,0.005]
[1761924171552,2.61609654,3875.2,3875.1,0.005]